fUST/lending_fUST_20240702
["ID","MTS","AMOUNT","RATE_DAILY","PERIOD"]
[330860450,1719873042401,-500.0,0.00015883,2]
[330860451,1719873042410,-1185.83,0.00015883,2]
[330860452,1719873042420,-500.0,0.00015883,2]
[330860453,1719873042429,-500.0,0.00015883,2]
[330860454,1719873042438,-500.0,0.00015883,2]
[330860455,1719873042447,-500.0,0.00015883,2]
[330860456,1719873042456,-500.0,0.00015883,2]
[330860457,1719873042466,-778.72,0.00015883,2]
[330860458,1719873042474,-500.0,0.00015883,2]
[330860459,1719873042483,-630.0,0.00015883,2]
[330860460,1719873042493,-500.0,0.00015883,2]
[330860461,1719873042502,-500.0,0.00015883,2]
[330860462,1719873042511,-500.0,0.00015883,2]
[330860463,1719873042520,-500.0,0.00015883,2]
[330860464,1719873042530,-500.0,0.00015883,2]
[330860465,1719873042539,-500.0,0.00015883,2]
[330860466,1719873042548,-500.0,0.00015883,2]
[330860467,1719873042558,-500.0,0.00015883,2]
[330860468,1719873042567,-618.84,0.00015883,2]
[330860469,1719873042576,-503.78135278,0.00015883,2]
[330860470,1719873042586,-500.0,0.00015883,2]
[330860471,1719873042594,-500.0,0.00015883,2]
[330860472,1719873042604,-500.0,0.00015883,2]
[330860473,1719873042621,-532.03,0.00015883,2]
[330860474,1719873042631,-500.0,0.00015883,2]
[330860475,1719873042640,-504.10739124,0.00015883,2]
[330860476,1719873042650,-500.0,0.00015883,2]
[330860477,1719873042662,-500.0,0.00015883,2]
[330860478,1719873042671,-974.1,0.00015883,2]
[330860479,1719873042681,-500.0,0.00015883,2]
[330860480,1719873042690,-515.0,0.00015883,2]
[330860482,1719873042699,-500.0,0.00015883,2]
[330860483,1719873042708,-500.0,0.00015883,2]
[330860484,1719873042717,-500.0,0.00015883,2]
[330860485,1719873042727,-500.0,0.00015883,2]
[330860486,1719873042736,-500.0,0.00015883,2]
[330860487,1719873042746,-500.0,0.00015883,2]
[330860488,1719873042755,-500.0,0.00015883,2]
[330860489,1719873042764,-500.0,0.00015883,2]
[330860490,1719873042773,-500.0,0.00015883,2]
[330860491,1719873042783,-264.7803728,0.00015883,2]
[330860492,1719873042792,-566.87,0.00015883,2]
[330860493,1719873042802,-251.35181159,0.00015883,2]
[330860494,1719873042811,-500.0,0.00015883,2]
[330860495,1719873042820,-500.0,0.00015883,2]
[330860496,1719873042833,-500.0,0.00015883,2]
[330860497,1719873042843,-500.0,0.00015883,2]
[330860498,1719873042852,-500.0,0.00015883,2]
[330860499,1719873042861,-500.0,0.00015883,2]
[330860500,1719873042871,-500.0,0.00015883,2]
[330860501,1719873042881,-500.0,0.00015883,2]
[330860502,1719873042890,-500.0,0.00015883,2]
[330860503,1719873042899,-500.0,0.00015883,2]
[330860504,1719873042908,-587.37,0.00015883,2]
[330860505,1719873042917,-500.0,0.00015883,2]
[330860506,1719873042927,-451.6835694,0.00015883,2]
[330860507,1719873042936,-500.0,0.00015883,2]
[330860508,1719873042945,-547.92,0.00015883,2]
[330860509,1719873042954,-500.0,0.00015883,2]
[330860510,1719873042964,-504.32777487,0.00015883,2]
[330860511,1719873042973,-555.81,0.00015883,2]
[330860512,1719873042982,-500.0,0.00015883,2]
[330860513,1719873042992,-500.0,0.00015883,2]
[330860514,1719873043001,-500.0,0.00015883,2]
[330860515,1719873043010,-500.0,0.00015883,2]
[330860516,1719873043019,-500.0,0.00015883,2]
[330860517,1719873043028,-500.0,0.00015883,2]
[330860518,1719873043038,-1072.9,0.00015883,2]
[330860519,1719873043047,-1072.9,0.00015883,2]
[330860520,1719873043056,-1072.9,0.00015883,2]
[330860521,1719873043065,-500.0,0.00015883,2]
[330860522,1719873043074,-500.0,0.00015883,2]
[330860523,1719873043083,-500.0,0.00015883,2]
[330860524,1719873043092,-500.0,0.00015883,2]
[330860525,1719873043101,-1000.0,0.00015883,2]
[330860526,1719873043109,-530.34,0.00015883,2]
[330860527,1719873043119,-529.00221487,0.00015883,2]
[330860528,1719873043127,-500.0,0.00015883,2]
[330860529,1719873043136,-500.0,0.00015883,2]
[330860530,1719873043145,-500.0,0.00015883,2]
[330860531,1719873043154,-500.0,0.00015883,2]
[330860532,1719873043162,-500.0,0.00015883,2]
[330860533,1719873043171,-553.36,0.00015883,2]
[330860534,1719873043180,-500.0,0.00015883,2]
[330860535,1719873043188,-500.0,0.00015883,2]
[330860536,1719873043197,-500.0,0.00015883,2]
[330860537,1719873043206,-500.0,0.00015883,2]
[330860538,1719873043215,-500.0,0.00015883,2]
[330860539,1719873043223,-500.0,0.00015883,2]
[330860540,1719873043232,-500.0,0.00015883,2]
[330860541,1719873043241,-500.0,0.00015883,2]
[330860542,1719873043250,-500.0,0.00015883,2]
[330860543,1719873043260,-500.0,0.00015883,2]
[330860544,1719873043269,-500.0,0.00015883,2]
[330860545,1719873043278,-500.0,0.00015883,2]
[330860546,1719873043287,-500.0,0.00015883,2]
[330860547,1719873043296,-507.01202653,0.00015883,2]
[330860548,1719873043305,-500.0,0.00015883,2]
[330860549,1719873043314,-500.0,0.00015883,2]
[330860550,1719873043323,-500.0,0.00015883,2]
[330860551,1719873043332,-500.0,0.00015883,2]
[330860552,1719873043341,-500.0,0.00015883,2]
[330860553,1719873043350,-500.0,0.00015883,2]
[330860554,1719873043360,-500.0,0.00015883,2]
[330860555,1719873043369,-500.0,0.00015883,2]
[330860556,1719873043378,-609.70960193,0.00015883,2]
[330860557,1719873043387,-500.0,0.00015883,2]
[330860558,1719873043396,-500.0,0.00015883,2]
[330860559,1719873043405,-314.71199988,0.00015883,2]
[330860560,1719873043414,-500.0,0.00015883,2]
[330860561,1719873043424,-413.82440096,0.00015883,2]
[330860562,1719873043433,-500.0,0.00015883,2]
[330860563,1719873043442,-500.0,0.00015883,2]
[330860564,1719873043451,-500.0,0.00015883,2]
[330860565,1719873043460,-500.0,0.00015883,2]
[330860566,1719873043469,-500.0,0.00015883,2]
[330860567,1719873043478,-500.0,0.00015883,2]
[330860568,1719873043487,-500.0,0.00015883,2]
[330860569,1719873043496,-502.73797062,0.00015883,2]
[330860570,1719873043505,-503.14891708,0.00015883,2]
[330860571,1719873043515,-500.0,0.00015883,2]
[330860572,1719873043524,-500.0,0.00015883,2]
[330860573,1719873043533,-502.0613752,0.00015883,2]
[330860574,1719873043543,-500.0,0.00015883,2]
[330860575,1719873043552,-500.0,0.00015883,2]
[330860576,1719873043562,-500.0,0.00015883,2]
[330860577,1719873043571,-500.0,0.00015883,2]
[330860578,1719873043581,-500.0,0.00015883,2]
[330860579,1719873043591,-500.0,0.00015884,2]
[330860580,1719873043600,-500.0,0.00015884,2]
[330860581,1719873043611,-502.0140536,0.00015884,2]
[330860583,1719873043628,-399.01837692,0.00015884,2]
[330860585,1719873043637,-500.0,0.00015884,2]
[330860587,1719873043647,-500.0,0.00015884,2]
[330860589,1719873043656,-500.0,0.00015884,2]
[330860591,1719873043667,-500.0,0.00015884,2]
[330860592,1719873043677,-397.98178427,0.00015884,2]
[330860595,1719873043687,-500.0,0.00015884,2]
[330860597,1719873043698,-523.64,0.00015884,2]
[330860599,1719873043709,-419.20600377,0.00015884,2]
[330860601,1719873043718,-500.0,0.00015884,2]
[330860603,1719873043728,-500.0,0.00015884,2]
[330860605,1719873043737,-500.0,0.00015884,2]
[330860607,1719873043746,-500.0,0.00015884,2]
[330860609,1719873043755,-500.0,0.00015884,2]
[330860610,1719873043764,-500.0,0.00015884,2]
[330860611,1719873043774,-500.0,0.00015884,2]
[330860612,1719873043783,-500.0,0.00015884,2]
[330860613,1719873043793,-500.0,0.00015884,2]
[330860614,1719873043802,-500.0,0.00015884,2]
[330860616,1719873043811,-500.0,0.00015884,2]
[330860618,1719873043821,-500.0,0.00015884,2]
[330860620,1719873043831,-500.0,0.00015884,2]
[330860622,1719873043841,-500.0,0.00015884,2]
[330860623,1719873043850,-500.0,0.00015884,2]
[330860627,1719873043860,-505.44340575,0.00015884,2]
[330860630,1719873043870,-535.19,0.00015884,2]
[330860634,1719873043880,-500.0,0.00015884,2]
[330860636,1719873043896,-500.0,0.00015884,2]
[330860638,1719873043906,-1333.82,0.00015884,2]
[330860640,1719873043915,-500.0,0.00015884,2]
[330860642,1719873043925,-500.0,0.00015884,2]
[330860645,1719873043935,-500.0,0.00015884,2]
[330860647,1719873043944,-500.0,0.00015884,2]
[330860649,1719873043955,-475.69031275,0.00015884,2]
[330860651,1719873043964,-500.0,0.00015884,2]
[330860653,1719873043974,-500.0,0.00015884,2]
[330860654,1719873043983,-500.0,0.00015884,2]
[330860655,1719873043992,-500.0,0.00015884,2]
[330860656,1719873044001,-504.98606072,0.00015884,2]
[330860657,1719873044010,-592.28,0.00015884,2]
[330860658,1719873044020,-500.0,0.00015884,2]
[330860659,1719873044029,-500.0,0.00015884,2]
[330860660,1719873044038,-501.96270026,0.00015884,2]
[330860661,1719873044048,-500.0,0.00015884,2]
[330860662,1719873044057,-500.0,0.00015884,2]
[330860663,1719873044066,-490.40019093,0.00015884,2]
[330860664,1719873044075,-504.10878318,0.00015884,2]
[330860665,1719873044084,-502.60098832,0.00015884,2]
[330860666,1719873044094,-500.0,0.00015884,2]
[330860667,1719873044104,-500.0,0.00015884,2]
[330860668,1719873044113,-151.0,0.00015884,2]
[330860669,1719873044123,-151.0,0.00015884,2]
[330860670,1719873044132,-500.0,0.00015884,2]
[330860671,1719873044141,-500.0,0.00015884,2]
[330860672,1719873044151,-500.0,0.00015884,2]
[330860673,1719873044160,-500.0,0.00015884,2]
[330860674,1719873044169,-9971.93,0.00015884,2]
[330860675,1719873044179,-630.14,0.00015884,2]
[330860676,1719873044188,-4657.65,0.00015885,2]
[330860677,1719873044198,-516.31604977,0.00015885,2]
[330860678,1719873044207,-783.18,0.00015885,2]
[330860680,1719873044217,-500.0,0.00015885,2]
[330860681,1719873044227,-707.51,0.00015885,2]
[330860682,1719873044237,-561.72,0.00015885,2]
[330860683,1719873044247,-500.0,0.00015885,2]
[330860684,1719873044256,-6868.45,0.00015885,2]
[330860685,1719873044265,-500.0,0.00015885,2]
[330860686,1719873044274,-3518.94,0.00015885,2]
[330860687,1719873044284,-500.0,0.00015885,2]
[330860688,1719873044293,-1652.42,0.00015885,2]
[330860689,1719873044302,-1058.11,0.00015885,2]
[330860690,1719873044312,-1072.9,0.00015886,2]
[330860691,1719873044321,-490.82318913,0.00015995,2]
[330860692,1719873044331,-877.0,0.00016009,2]
[330860693,1719873044340,-1072.9,0.00016253,2]
[330860694,1719873044349,-1072.9,0.00016253,2]
[330860695,1719873044358,-78297.10169102,0.00016254,2]
[330860696,1719873044381,-3033.23299229,0.00016254,2]
[330860697,1719873044389,-151.0,0.00016254,2]
[330860698,1719873044398,-151.0,0.00016254,2]
[330860699,1719873044408,-151.0,0.00016254,2]
[330860700,1719873044417,-1072.9,0.00016254,2]
[330860701,1719873044427,-1072.9,0.00016254,2]
[330860702,1719873044436,-1072.9,0.00016254,2]
[330860703,1719873044445,-1072.9,0.00016254,2]
[330860704,1719873044454,-8191.33365378,0.00016255,2]
[330860722,1719873046569,-500.0,0.00015881,2]
[330860723,1719873046579,-500.0,0.00015881,2]
[330860724,1719873046589,-49001.03008706,0.00016255,2]
[330860725,1719873046598,-17244.25346368,0.00016255,2]
[330860726,1719873046611,-42219.78058169,0.00016255,2]
[330860727,1719873046622,-30000.0,0.00016255,2]
[330860728,1719873046631,-26080.98438024,0.00016255,2]
[330860729,1719873046641,-151.0,0.00016255,2]
[330860730,1719873046651,-151.0,0.00016255,2]
[330860731,1719873046661,-198.0,0.00016255,2]
[330860732,1719873046670,-240.923,0.0001635,2]
[330860733,1719873046679,-500.0,0.00016429,2]
[330860734,1719873046691,-500.0,0.00016429,2]
[330860735,1719873046701,-698.65,0.00016429,2]
[330860736,1719873046710,-2314.79,0.00016429,2]
[330860737,1719873046719,-500.0,0.00016429,2]
[330860738,1719873046729,-13448.11,0.00016429,2]
[330860739,1719873046738,-1244.53,0.00016429,2]
[330860740,1719873046747,-580.35,0.00016429,2]
[330860741,1719873046756,-2336.36,0.00016429,2]
[330860742,1719873046766,-440.88,0.00016429,2]
[330860743,1719873046775,-5520.36,0.00016429,2]
[330860744,1719873046785,-500.0,0.00016429,2]
[330860745,1719873046794,-500.0,0.00016429,2]
[330860746,1719873046803,-500.0,0.00016429,2]
[330860747,1719873046812,-500.0,0.00016429,2]
[330860748,1719873046821,-375.47,0.0001643,2]
[330860749,1719873046832,-201.05,0.0001643,2]
[330860750,1719873046842,-603.96,0.0001643,2]
[330860751,1719873046851,-582.26,0.0001643,2]
[330860752,1719873046860,-203.37,0.0001643,2]
[330860753,1719873046869,-1110.93,0.0001643,2]
[330860754,1719873046879,-285.58,0.0001643,2]
[330860755,1719873046889,-800.87,0.0001643,2]
[330860756,1719873046899,-1160.72,0.0001643,2]
[330860757,1719873046908,-500.0,0.0001643,2]
[330860758,1719873046917,-500.0,0.0001643,2]
[330860759,1719873046926,-654.87,0.0001643,2]
[330860760,1719873046936,-592.51,0.0001643,2]
[330860761,1719873046944,-500.0,0.0001643,2]
[330860762,1719873046954,-500.0,0.0001643,2]
[330860763,1719873046963,-500.0,0.0001643,2]
[330860764,1719873046972,-500.0,0.0001643,2]
[330860765,1719873046981,-500.0,0.0001643,2]
[330860766,1719873046990,-427.37,0.0001643,2]
[330860767,1719873047000,-500.0,0.0001643,2]
[330860768,1719873047009,-500.0,0.0001643,2]
[330860769,1719873047018,-500.0,0.0001643,2]
[330860770,1719873047027,-500.0,0.0001643,2]
[330860771,1719873047037,-500.0,0.0001643,2]
[330860772,1719873047046,-500.0,0.0001643,2]
[330860773,1719873047055,-151.0,0.0001643,2]
[330860774,1719873047064,-500.0,0.0001643,2]
[330860775,1719873047073,-500.0,0.0001643,2]
[330860776,1719873047082,-506.96907671,0.0001643,2]
[330860777,1719873047091,-539.99461834,0.0001643,2]
[330860778,1719873047100,-500.0,0.0001643,2]
[330860779,1719873047109,-500.0,0.0001643,2]
[330860780,1719873047119,-678.61,0.0001643,2]
[330860781,1719873047131,-354.24,0.0001643,2]
[330860782,1719873047140,-500.0,0.0001643,2]
[330860783,1719873047152,-500.0,0.0001643,2]
[330860784,1719873047161,-1576.66,0.0001643,2]
[330860785,1719873047171,-500.0,0.0001643,2]
[330860786,1719873047180,-500.0,0.0001643,2]
[330860787,1719873047190,-1988.74,0.0001643,2]
[330860788,1719873047199,-188.19,0.0001643,2]
[330860789,1719873047209,-500.0,0.0001643,2]
[330860790,1719873047218,-1052.52,0.0001643,2]
[330860791,1719873047227,-500.0,0.0001643,2]
[330860792,1719873047235,-505.51792249,0.0001643,2]
[330860793,1719873047245,-563.02,0.0001643,2]
[330860794,1719873047254,-1072.9,0.0001643,2]
[330860795,1719873047263,-1072.9,0.0001643,2]
[330860796,1719873047273,-500.0,0.0001643,2]
[330860797,1719873047283,-500.0,0.0001643,2]
[330860798,1719873047292,-369.01,0.0001643,2]
[330860799,1719873047302,-871.07,0.0001643,2]
[330860800,1719873047311,-500.0,0.0001643,2]
[330860801,1719873047320,-500.0,0.0001643,2]
[330860802,1719873047329,-806.94,0.0001643,2]
[330860803,1719873047339,-186.46831782,0.0001643,2]
[330860804,1719873047348,-3948.88,0.0001643,2]
[330860805,1719873047357,-365.7,0.0001643,2]
[330860806,1719873047367,-500.0,0.0001643,2]
[330860807,1719873047377,-500.0,0.0001643,2]
[330860808,1719873047386,-500.0,0.0001643,2]
[330860809,1719873047395,-931.38,0.0001643,2]
[330860810,1719873047405,-500.0,0.0001643,2]
[330860811,1719873047414,-500.0,0.0001643,2]
[330860812,1719873047423,-500.0,0.0001643,2]
[330860813,1719873047432,-500.0,0.0001643,2]
[330860814,1719873047441,-500.0,0.0001643,2]
[330860815,1719873047450,-500.0,0.0001643,2]
[330860816,1719873047459,-500.0,0.0001643,2]
[330860817,1719873047468,-852.59,0.0001643,2]
[330860818,1719873047478,-502.8,0.0001643,2]
[330860819,1719873047487,-4149.77,0.0001643,2]
[330860820,1719873047496,-1259.74,0.0001643,2]
[330860821,1719873047505,-294.03718868,0.0001643,2]
[330860822,1719873047514,-500.0,0.0001643,2]
[330860823,1719873047523,-6135.99,0.0001643,2]
[330860824,1719873047532,-500.0,0.0001643,2]
[330860825,1719873047542,-500.0,0.0001643,2]
[330860826,1719873047551,-834.2,0.0001643,2]
[330860827,1719873047560,-974.96,0.0001643,2]
[330860828,1719873047570,-269.61834029,0.00016431,2]
[330860829,1719873047579,-466.99094641,0.00016431,2]
[330860830,1719873047589,-626.07,0.00016431,2]
[330860831,1719873047598,-500.0,0.00016431,2]
[330860832,1719873047608,-218.19,0.00016431,2]
[330860833,1719873047623,-355.34,0.00016431,2]
[330860834,1719873047632,-500.0,0.00016431,2]
[330860835,1719873047642,-170.26,0.00016431,2]
[330860836,1719873047651,-574.84123996,0.00016431,2]
[330860837,1719873047660,-500.0,0.00016431,2]
[330860838,1719873047670,-503.23293602,0.00016431,2]
[330860839,1719873047679,-500.0,0.00016431,2]
[330860840,1719873047688,-500.0,0.00016431,2]
[330860841,1719873047698,-500.0,0.00016431,2]
[330860842,1719873047708,-550.47623558,0.00016431,2]
[330860843,1719873047717,-500.0,0.00016431,2]
[330860844,1719873047728,-242.02,0.00016431,2]
[330860845,1719873047737,-511.69032459,0.00016431,2]
[330860846,1719873047747,-500.0,0.00016431,2]
[330860847,1719873047756,-151.0,0.00016431,2]
[330860848,1719873047765,-500.0,0.00016431,2]
[330860849,1719873047774,-151.0,0.00016431,2]
[330860850,1719873047784,-500.0,0.00016431,2]
[330860851,1719873047793,-504.15153962,0.00016431,2]
[330860852,1719873047803,-954.67,0.00016431,2]
[330860853,1719873047812,-505.86904496,0.00016431,2]
[330860854,1719873047820,-505.85319242,0.00016431,2]
[330860855,1719873047830,-519.97,0.00016431,2]
[330860856,1719873047840,-507.77,0.00016431,2]
[330860857,1719873047850,-509.17757336,0.00016431,2]
[330860858,1719873047859,-504.33482254,0.00016431,2]
[330860859,1719873047868,-502.79453003,0.00016431,2]
[330860860,1719873047879,-500.0,0.00016431,2]
[330860861,1719873047888,-503.50059832,0.00016431,2]
[330860862,1719873047897,-500.0,0.00016431,2]
[330860863,1719873047906,-277.64467998,0.00016431,2]
[330860864,1719873047915,-500.0,0.00016431,2]
[330860865,1719873047924,-500.0,0.00016431,2]
[330860866,1719873047933,-502.68701016,0.00016431,2]
[330860867,1719873047942,-541.73040475,0.00016431,2]
[330860868,1719873047952,-500.0,0.00016431,2]
[330860869,1719873047961,-504.13098582,0.00016431,2]
[330860870,1719873047971,-186.38559278,0.00016431,2]
[330860871,1719873047981,-500.0,0.00016431,2]
[330860872,1719873047990,-500.0,0.00016431,2]
[330860873,1719873047999,-500.0,0.00016431,2]
[330860874,1719873048009,-500.0,0.00016431,2]
[330860875,1719873048018,-466.23,0.00016431,2]
[330860876,1719873048028,-500.0,0.00016431,2]
[330860877,1719873048037,-500.0,0.00016431,2]
[330860878,1719873048046,-500.0,0.00016431,2]
[330860879,1719873048056,-720.36,0.00016431,2]
[330860880,1719873048066,-152.61062681,0.00016431,2]
[330860881,1719873048075,-5829.77,0.00016431,2]
[330860882,1719873048084,-500.0,0.00016431,2]
[330860883,1719873048093,-500.0,0.00016431,2]
[330860884,1719873048102,-503.45638904,0.00016431,2]
[330860885,1719873048112,-506.68,0.00016431,2]
[330860886,1719873048121,-500.0,0.00016431,2]
[330860887,1719873048135,-833.78,0.00016431,2]
[330860888,1719873048145,-503.48926355,0.00016431,2]
[330860889,1719873048154,-500.2,0.00016431,2]
[330860890,1719873048164,-505.82315576,0.00016431,2]
[330860891,1719873048173,-504.65673738,0.00016431,2]
[330860892,1719873048182,-501.10862395,0.00016431,2]
[330860893,1719873048191,-500.0,0.00016431,2]
[330860894,1719873048200,-500.0,0.00016431,2]
[330860895,1719873048210,-500.0,0.00016431,2]
[330860896,1719873048220,-543.80421932,0.00016431,2]
[330860897,1719873048229,-505.741828,0.00016431,2]
[330860898,1719873048239,-500.0,0.00016431,2]
[330860899,1719873048247,-550.88333421,0.00016431,2]
[330860900,1719873048257,-506.32022327,0.00016431,2]
[330860901,1719873048266,-609.41,0.00016431,2]
[330860902,1719873048276,-534.54,0.00016431,2]
[330860903,1719873048285,-500.0,0.00016431,2]
[330860904,1719873048294,-500.0,0.00016431,2]
[330860905,1719873048303,-504.28177108,0.00016431,2]
[330860906,1719873048313,-174.35189357,0.00016431,2]
[330860907,1719873048322,-638.22,0.00016431,2]
[330860908,1719873048331,-500.0,0.00016431,2]
[330860909,1719873048341,-503.62609238,0.00016431,2]
[330860910,1719873048350,-527.6,0.00016431,2]
[330860911,1719873048359,-500.0,0.00016431,2]
[330860912,1719873048368,-500.0,0.00016431,2]
[330860913,1719873048381,-1185.83,0.00016431,2]
[330860914,1719873048390,-500.0,0.00016431,2]
[330860915,1719873048399,-778.72,0.00016431,2]
[330860916,1719873048408,-502.08598263,0.00016431,2]
[330860917,1719873048418,-508.71772367,0.00016431,2]
[330860918,1719873048427,-500.0,0.00016431,2]
[330860919,1719873048438,-151.0,0.00016431,2]
[330860920,1719873048447,-500.0,0.00016431,2]
[330860921,1719873048456,-532.03,0.00016431,2]
[330860922,1719873048466,-500.0,0.00016431,2]
[330860923,1719873048475,-974.1,0.00016431,2]
[330860924,1719873048484,-221.26,0.00016431,2]
[330860925,1719873048493,-500.0,0.00016431,2]
[330860926,1719873048503,-336.58203835,0.00016431,2]
[330860927,1719873048513,-500.0,0.00016431,2]
[330860928,1719873048523,-500.0,0.00016431,2]
[330860929,1719873048532,-500.0,0.00016431,2]
[330860930,1719873048542,-392.43,0.00016431,2]
[330860931,1719873048551,-500.0,0.00016431,2]
[330860932,1719873048560,-500.0,0.00016431,2]
[330860933,1719873048570,-500.0,0.00016431,2]
[330860934,1719873048579,-505.94677792,0.00016431,2]
[330860935,1719873048589,-500.0,0.00016431,2]
[330860936,1719873048599,-547.92,0.00016431,2]
[330860937,1719873048610,-502.17332654,0.00016431,2]
[330860938,1719873048620,-500.0,0.00016431,2]
[330860939,1719873048630,-500.0,0.00016431,2]
[330860940,1719873048639,-555.81,0.00016431,2]
[330860941,1719873048649,-511.27050037,0.00016431,2]
[330860942,1719873048759,-500.0,0.00016431,2]
[330860943,1719873048769,-1072.9,0.00016431,2]
[330860944,1719873048780,-530.34,0.00016431,2]
[330860945,1719873048790,-1072.9,0.00016431,2]
[330860946,1719873048800,-553.54988424,0.00016431,2]
[330860947,1719873048810,-394.3736668,0.00016431,2]
[330860948,1719873048820,-500.0,0.00016431,2]
[330860949,1719873048829,-500.0,0.00016431,2]
[330860950,1719873048840,-501.60554147,0.00016431,2]
[330860951,1719873048849,-500.0,0.00016431,2]
[330860952,1719873048859,-500.0,0.00016431,2]
[330860953,1719873048868,-272.42,0.00016431,2]
[330860954,1719873048879,-459.64,0.00016431,2]
[330860955,1719873048888,-500.0,0.00016431,2]
[330860956,1719873048897,-500.0,0.00016431,2]
[330860957,1719873048907,-500.0,0.00016431,2]
[330860958,1719873048917,-500.0,0.00016431,2]
[330860959,1719873048926,-500.0,0.00016431,2]
[330860960,1719873048937,-500.0,0.00016431,2]
[330860961,1719873048948,-509.39770721,0.00016431,2]
[330860962,1719873048957,-156.34122363,0.00016432,2]
[330860963,1719873048966,-280.66475558,0.00016432,2]
[330860964,1719873048975,-605.64,0.00016432,2]
[330860965,1719873048985,-503.16381996,0.00016432,2]
[330860966,1719873048994,-500.0,0.00016432,2]
[330860967,1719873049003,-436.54304068,0.00016432,2]
[330860968,1719873049015,-500.0,0.00016432,2]
[330860969,1719873049024,-500.0,0.00016432,2]
[330860970,1719873049034,-500.0,0.00016432,2]
[330860971,1719873049043,-490.7,0.00016432,2]
[330860972,1719873049052,-500.0,0.00016432,2]
[330860973,1719873049062,-1333.82,0.00016432,2]
[330860974,1719873049071,-500.0,0.00016432,2]
[330860975,1719873049081,-500.0,0.00016432,2]
[330860976,1719873049091,-500.0,0.00016432,2]
[330860977,1719873049100,-592.28,0.00016432,2]
[330860978,1719873049109,-500.0,0.00016432,2]
[330860979,1719873049119,-500.0,0.00016432,2]
[330860980,1719873049129,-500.0,0.00016432,2]
[330860981,1719873049138,-500.0,0.00016432,2]
[330860982,1719873049147,-500.0,0.00016432,2]
[330860983,1719873049156,-1072.9,0.00016432,2]
[330860984,1719873049165,-500.0,0.00016432,2]
[330860985,1719873049176,-500.0,0.00016432,2]
[330860986,1719873049184,-9971.93,0.00016432,2]
[330860987,1719873049194,-4657.65,0.00016433,2]
[330860988,1719873049204,-151.0,0.00016433,2]
[330860989,1719873049214,-783.18,0.00016433,2]
[330860990,1719873049223,-500.0,0.00016433,2]
[330860991,1719873049232,-707.51,0.00016433,2]
[330860992,1719873049242,-561.72,0.00016433,2]
[330860993,1719873049251,-6868.45,0.00016433,2]
[330860994,1719873049260,-500.0,0.00016433,2]
[330860995,1719873049270,-3518.94,0.00016433,2]
[330860996,1719873049279,-402.13362124,0.00016433,2]
[330860997,1719873049289,-1652.42,0.00016433,2]
[330860998,1719873049299,-1058.11,0.00016433,2]
[330860999,1719873049309,-1000.0,0.00016438,2]
[330861000,1719873049318,-1000.0,0.00016438,2]
[330861001,1719873049327,-1000.0,0.00016438,2]
[330861002,1719873049336,-1000.0,0.00016438,2]
[330861003,1719873049346,-1000.0,0.00016438,2]
[330861004,1719873049355,-1000.0,0.00016438,2]